[Event "Titled Tuesday Blitz August 02 Early 2022"]
[White "Sjugirov, Sanan"]
[Black "Perera Alfonso, Rene Humberto"]
[WhiteFideId "4189302"]
[BlackFideId "3514722"]
[WhiteElo "2609"]
[BlackElo "2313"]
[Result "0-1"]
[Round "04"]
[TimeControl "180+1"]
[Date "2022.08.02"]
[WhiteClock "0:00:01"]
[BlackClock "0:01:02"]

1. e4 {[%clk 0:03:00]}  c5 {[%clk 0:02:59]} 2. Nf3 {[%clk 0:03:01]}  d6 {[%clk 0:02:59]} 3. Bb5+ {[%clk 0:03:00]}  Bd7 {[%clk 0:02:59]} 4. Bxd7+ {[%clk 0:03:00]}  Qxd7 {[%clk 0:03:00]} 5. O-O {[%clk 0:03:01]}  Nc6 {[%clk 0:03:00]} 6. Re1 {[%clk 0:03:01]}  Nf6 {[%clk 0:03:00]} 7. c3 {[%clk 0:03:02]}  e6 {[%clk 0:03:00]} 8. d4 {[%clk 0:03:03]}  cxd4 {[%clk 0:03:01]} 9. cxd4 {[%clk 0:03:04]}  d5 {[%clk 0:03:01]} 10. e5 {[%clk 0:03:05]}  Ne4 {[%clk 0:03:01]} 11. Nbd2 {[%clk 0:03:04]}  Nxd2 {[%clk 0:03:02]} 12. Bxd2 {[%clk 0:03:05]}  Be7 {[%clk 0:03:02]} 13. g3 {[%clk 0:03:06]}  O-O {[%clk 0:03:02]} 14. h4 {[%clk 0:03:07]}  Rfc8 {[%clk 0:03:02]} 15. Kg2 {[%clk 0:03:07]}  Nb4 {[%clk 0:02:52]} 16. Bc3 {[%clk 0:03:06]}  b5 {[%clk 0:02:50]} 17. h5 {[%clk 0:03:06]}  h6 {[%clk 0:02:50]} 18. Qe2 {[%clk 0:03:03]}  Rab8 {[%clk 0:02:47]} 19. g4 {[%clk 0:02:53]}  Nc6 {[%clk 0:02:44]} 20. Bd2 {[%clk 0:02:50]}  b4 {[%clk 0:02:36]} 21. Be3 {[%clk 0:02:50]}  Na5 {[%clk 0:02:28]} 22. g5 {[%clk 0:02:48]}  Qb5 {[%clk 0:02:13]} 23. gxh6 {[%clk 0:02:42]}  Qxe2 {[%clk 0:02:11]} 24. Rxe2 {[%clk 0:02:43]}  gxh6 {[%clk 0:02:12]} 25. Bxh6 {[%clk 0:02:44]}  Rc4 {[%clk 0:02:11]} 26. Kh3 {[%clk 0:02:41]}  Kh7 {[%clk 0:01:48]} 27. Bg5 {[%clk 0:02:41]}  Bf8 {[%clk 0:01:46]} 28. Rg1 {[%clk 0:02:39]}  Nc6 {[%clk 0:01:41]} 29. Rg4 {[%clk 0:02:38]}  b3 {[%clk 0:01:37]} 30. a3 {[%clk 0:02:34]}  Rc2 {[%clk 0:01:35]} 31. Bf6 {[%clk 0:00:24]}  Bh6 {[%clk 0:01:28]} 32. Re1 {[%clk 0:00:18]}  Rg8 {[%clk 0:01:20]} 33. Rxg8 {[%clk 0:00:17]}  Kxg8 {[%clk 0:01:19]} 34. Rg1+ {[%clk 0:00:17]}  Kh7 {[%clk 0:01:17]} 35. Ng5+ {[%clk 0:00:17]}  Bxg5 {[%clk 0:01:16]} 36. Rxg5 {[%clk 0:00:18]}  Nxd4 {[%clk 0:01:12]} 37. Rg7+ {[%clk 0:00:16]}  Kh6 {[%clk 0:01:13]} 38. Rxf7 {[%clk 0:00:03]}  Kxh5 {[%clk 0:01:10]} 39. Rxa7 {[%clk 0:00:01]}  Rxb2 {[%clk 0:01:07]} 40. Rh7+ {[%clk 0:00:01]}  Kg6 {[%clk 0:01:05]} 41. Rg7+ {[%clk 0:00:01]}  Kf5 {[%clk 0:01:02]} 0-1


[Site "https://www.chess.com"]

[Event "Titled Tuesday Blitz August 02 Early 2022"]
[White "Sorkin, Igor"]
[Black "Itgelt, Khuyagtsogt"]
[WhiteFideId "2803283"]
[BlackFideId "4902912"]
[WhiteElo "2401"]
[BlackElo "2012"]
[Result "0-1"]
[Round "04"]
[TimeControl "180+1"]
[Date "2022.08.02"]
[WhiteClock "0:00:17"]
[BlackClock "0:00:04"]

1. d4 {[%clk 0:03:00]}  e6 {[%clk 0:02:53]} 2. Nf3 {[%clk 0:03:00]}  Nf6 {[%clk 0:02:53]} 3. Bf4 {[%clk 0:03:00]}  c5 {[%clk 0:02:49]} 4. e3 {[%clk 0:03:00]}  d5 {[%clk 0:02:49]} 5. Nbd2 {[%clk 0:02:59]}  Bd6 {[%clk 0:02:49]} 6. c3 {[%clk 0:02:59]}  cxd4 {[%clk 0:02:39]} 7. Bxd6 {[%clk 0:02:42]}  dxe3 {[%clk 0:02:34]} 8. Ba3 {[%clk 0:02:41]}  exd2+ {[%clk 0:02:34]} 9. Qxd2 {[%clk 0:02:39]}  Ne4 {[%clk 0:02:29]} 10. Qf4 {[%clk 0:02:36]}  Qf6 {[%clk 0:02:08]} 11. Qc7 {[%clk 0:02:35]}  Nc6 {[%clk 0:02:08]} 12. Bb5 {[%clk 0:02:24]}  Qd8 {[%clk 0:02:03]} 13. Bxc6+ {[%clk 0:02:09]}  bxc6 {[%clk 0:02:03]} 14. Qxc6+ {[%clk 0:02:10]}  Bd7 {[%clk 0:02:03]} 15. Qa6 {[%clk 0:02:10]}  Qb6 {[%clk 0:01:59]} 16. Qxb6 {[%clk 0:02:06]}  axb6 {[%clk 0:02:00]} 17. O-O {[%clk 0:02:02]}  f6 {[%clk 0:01:53]} 18. Rfe1 {[%clk 0:01:58]}  Kf7 {[%clk 0:01:52]} 19. c4 {[%clk 0:01:58]}  Rhc8 {[%clk 0:01:38]} 20. cxd5 {[%clk 0:01:58]}  exd5 {[%clk 0:01:38]} 21. Rad1 {[%clk 0:01:55]}  Bc6 {[%clk 0:01:27]} 22. Nd4 {[%clk 0:01:55]}  Ba4 {[%clk 0:01:07]} 23. Rc1 {[%clk 0:01:36]}  Bd7 {[%clk 0:00:59]} 24. Nb3 {[%clk 0:01:29]}  Rxc1 {[%clk 0:00:48]} 25. Rxc1 {[%clk 0:01:29]}  Rc8 {[%clk 0:00:48]} 26. Rxc8 {[%clk 0:01:28]}  Bxc8 {[%clk 0:00:49]} 27. f3 {[%clk 0:01:29]}  Ng5 {[%clk 0:00:48]} 28. Kf2 {[%clk 0:01:21]}  Ba6 {[%clk 0:00:43]} 29. Nd4 {[%clk 0:01:05]}  Ne6 {[%clk 0:00:42]} 30. Nf5 {[%clk 0:01:05]}  Ke8 {[%clk 0:00:35]} 31. b3 {[%clk 0:00:58]}  Kd7 {[%clk 0:00:33]} 32. g3 {[%clk 0:00:53]}  Bd3 {[%clk 0:00:32]} 33. Ne3 {[%clk 0:00:47]}  Kc6 {[%clk 0:00:23]} 34. Bb2 {[%clk 0:00:36]}  b5 {[%clk 0:00:23]} 35. b4 {[%clk 0:00:30]}  d4 {[%clk 0:00:20]} 36. Nd1 {[%clk 0:00:27]}  Bb1 {[%clk 0:00:11]} 37. f4 {[%clk 0:00:24]}  Kd5 {[%clk 0:00:10]} 38. a3 {[%clk 0:00:20]}  Bc2 {[%clk 0:00:06]} 39. Ke2 {[%clk 0:00:20]}  Bxd1+ {[%clk 0:00:03]} 40. Kxd1 {[%clk 0:00:20]}  Kc4 {[%clk 0:00:03]} 41. Kd2 {[%clk 0:00:19]}  f5 {[%clk 0:00:03]} 42. h3 {[%clk 0:00:19]}  g6 {[%clk 0:00:04]} 43. Bc1 {[%clk 0:00:18]}  Nc7 {[%clk 0:00:04]} 44. Kc2 {[%clk 0:00:18]}  Nd5 {[%clk 0:00:05]} 45. Bd2 {[%clk 0:00:18]}  d3+ {[%clk 0:00:04]} 46. Kb2 {[%clk 0:00:17]}  Nf6 {[%clk 0:00:05]} 47. Be3 {[%clk 0:00:17]}  Ne4 {[%clk 0:00:04]} 48. g4 {[%clk 0:00:17]}  Nc3 {[%clk 0:00:03]} 49. Kc1 {[%clk 0:00:17]}  Nd5 {[%clk 0:00:02]} 50. Bd2 {[%clk 0:00:14]}  Kb3 {[%clk 0:00:03]} 51. gxf5 {[%clk 0:00:14]}  gxf5 {[%clk 0:00:03]} 52. h4 {[%clk 0:00:14]}  Kxa3 {[%clk 0:00:03]} 53. h5 {[%clk 0:00:15]}  Kb3 {[%clk 0:00:03]} 54. Kd1 {[%clk 0:00:15]}  Nxb4 {[%clk 0:00:04]} 55. Ke1 {[%clk 0:00:15]}  Kc2 {[%clk 0:00:04]} 56. Kf2 {[%clk 0:00:16]}  Kxd2 {[%clk 0:00:04]} 57. Kf3 {[%clk 0:00:17]}  Nc2 {[%clk 0:00:04]} 0-1


[Site "https://www.chess.com"]

[Event "Titled Tuesday Blitz August 02 Early 2022"]
[White "Srihari L R"]
[Black "Sevian, Samuel"]
[WhiteFideId "46617116"]
[BlackFideId "2040506"]
[WhiteElo "2170"]
[BlackElo "2692"]
[Result "0-1"]
[Round "04"]
[TimeControl "180+1"]
[Date "2022.08.02"]
[WhiteClock "0:00:05"]
[BlackClock "0:01:16"]

1. d4 {[%clk 0:02:55]}  d5 {[%clk 0:02:59]} 2. c4 {[%clk 0:02:56]}  c6 {[%clk 0:03:00]} 3. Nf3 {[%clk 0:02:53]}  Nf6 {[%clk 0:03:00]} 4. g3 {[%clk 0:02:53]}  Bf5 {[%clk 0:02:58]} 5. Nc3 {[%clk 0:02:53]}  e6 {[%clk 0:02:58]} 6. Qb3 {[%clk 0:02:53]}  dxc4 {[%clk 0:02:51]} 7. Qxc4 {[%clk 0:02:32]}  Nbd7 {[%clk 0:02:49]} 8. Bg2 {[%clk 0:02:32]}  Be7 {[%clk 0:02:49]} 9. O-O {[%clk 0:02:31]}  O-O {[%clk 0:02:49]} 10. e3 {[%clk 0:02:32]}  a5 {[%clk 0:02:48]} 11. Qe2 {[%clk 0:02:30]}  a4 {[%clk 0:02:46]} 12. e4 {[%clk 0:02:29]}  Bg6 {[%clk 0:02:46]} 13. a3 {[%clk 0:02:28]}  Re8 {[%clk 0:02:40]} 14. Bf4 {[%clk 0:02:15]}  Qa5 {[%clk 0:02:27]} 15. Rad1 {[%clk 0:02:05]}  Nb6 {[%clk 0:02:27]} 16. Ne5 {[%clk 0:02:00]}  Nfd7 {[%clk 0:02:22]} 17. h4 {[%clk 0:01:51]}  Nxe5 {[%clk 0:02:21]} 18. Bxe5 {[%clk 0:01:51]}  f6 {[%clk 0:02:19]} 19. Bc7 {[%clk 0:01:46]}  Rec8 {[%clk 0:02:18]} 20. Bxb6 {[%clk 0:01:44]}  Qxb6 {[%clk 0:02:18]} 21. d5 {[%clk 0:01:45]}  e5 {[%clk 0:02:11]} 22. d6 {[%clk 0:01:41]}  Bf8 {[%clk 0:02:10]} 23. Bh3 {[%clk 0:01:38]}  Rd8 {[%clk 0:02:10]} 24. Be6+ {[%clk 0:01:38]}  Kh8 {[%clk 0:02:10]} 25. h5 {[%clk 0:01:37]}  Bxh5 {[%clk 0:02:06]} 26. Qxh5 {[%clk 0:01:37]}  g6 {[%clk 0:02:02]} 27. Qf3 {[%clk 0:01:25]}  Kg7 {[%clk 0:02:01]} 28. d7 {[%clk 0:01:05]}  Qxb2 {[%clk 0:02:01]} 29. Kg2 {[%clk 0:01:03]}  Qxa3 {[%clk 0:01:59]} 30. Rh1 {[%clk 0:00:57]}  Qe7 {[%clk 0:01:59]} 31. Ba2 {[%clk 0:00:57]}  Rxd7 {[%clk 0:01:54]} 32. Rxd7 {[%clk 0:00:53]}  Qxd7 {[%clk 0:01:55]} 33. Rd1 {[%clk 0:00:54]}  Qe8 {[%clk 0:01:44]} 34. Qd3 {[%clk 0:00:53]}  b5 {[%clk 0:01:43]} 35. Qc2 {[%clk 0:00:30]}  Rd8 {[%clk 0:01:41]} 36. Rxd8 {[%clk 0:00:21]}  Qxd8 {[%clk 0:01:42]} 37. Nxa4 {[%clk 0:00:18]}  bxa4 {[%clk 0:01:41]} 38. Qxc6 {[%clk 0:00:18]}  a3 {[%clk 0:01:40]} 39. Qc4 {[%clk 0:00:13]}  Be7 {[%clk 0:01:32]} 40. Qf7+ {[%clk 0:00:12]}  Kh6 {[%clk 0:01:32]} 41. Bd5 {[%clk 0:00:13]}  Bc5 {[%clk 0:01:28]} 42. f4 {[%clk 0:00:11]}  exf4 {[%clk 0:01:27]} 43. gxf4 {[%clk 0:00:11]}  Qb8 {[%clk 0:01:25]} 44. Qxf6 {[%clk 0:00:11]}  Qb2+ {[%clk 0:01:25]} 45. Qxb2 {[%clk 0:00:11]}  axb2 {[%clk 0:01:26]} 46. Ba2 {[%clk 0:00:11]}  Kh5 {[%clk 0:01:22]} 47. Kf3 {[%clk 0:00:09]}  Kh4 {[%clk 0:01:15]} 48. Bb1 {[%clk 0:00:05]}  h6 {[%clk 0:01:15]} 49. e5 {[%clk 0:00:05]}  g5 {[%clk 0:01:15]} 50. f5 {[%clk 0:00:05]}  g4+ {[%clk 0:01:16]} 51. Kg2 {[%clk 0:00:05]}  Kg5 {[%clk 0:01:16]} 52. f6 {[%clk 0:00:05]}  h5 {[%clk 0:01:16]} 53. f7 {[%clk 0:00:06]}  h4 {[%clk 0:01:15]} 54. e6 {[%clk 0:00:06]}  h3+ {[%clk 0:01:15]} 55. Kg3 {[%clk 0:00:04]}  Bd6+ {[%clk 0:01:15]} 56. Kf2 {[%clk 0:00:05]}  g3+ {[%clk 0:01:16]} 57. Kf3 {[%clk 0:00:05]}  g2 {[%clk 0:01:16]} 0-1


[Site "https://www.chess.com"]

[Event "Titled Tuesday Blitz August 02 Early 2022"]
[White "Steinberg, Nitzan"]
[Black "Vlassov, Nikolai"]
[WhiteFideId "2801795"]
[BlackFideId "4103360"]
[WhiteElo "2471"]
[BlackElo "2324"]
[Result "1-0"]
[Round "04"]
[TimeControl "180+1"]
[Date "2022.08.02"]
[WhiteClock "0:00:59"]
[BlackClock "0:00:50"]

1. Nf3 {[%clk 0:03:00]}  c5 {[%clk 0:02:59]} 2. e4 {[%clk 0:03:00]}  d6 {[%clk 0:02:59]} 3. d4 {[%clk 0:02:58]}  cxd4 {[%clk 0:03:00]} 4. Qxd4 {[%clk 0:02:58]}  Nf6 {[%clk 0:03:00]} 5. Bg5 {[%clk 0:02:54]}  Nc6 {[%clk 0:02:45]} 6. Qe3 {[%clk 0:02:49]}  Ng4 {[%clk 0:02:33]} 7. Qd2 {[%clk 0:02:46]}  h6 {[%clk 0:02:29]} 8. Bh4 {[%clk 0:02:39]}  g5 {[%clk 0:02:29]} 9. Bg3 {[%clk 0:02:39]}  Bg7 {[%clk 0:02:29]} 10. c4 {[%clk 0:02:35]}  Qa5 {[%clk 0:02:22]} 11. Nc3 {[%clk 0:02:35]}  Bxc3 {[%clk 0:02:20]} 12. bxc3 {[%clk 0:02:36]}  Be6 {[%clk 0:02:11]} 13. h4 {[%clk 0:02:31]}  gxh4 {[%clk 0:02:03]} 14. Rxh4 {[%clk 0:02:30]}  O-O-O {[%clk 0:01:51]} 15. Rb1 {[%clk 0:02:28]}  a6 {[%clk 0:01:39]} 16. Be2 {[%clk 0:02:27]}  Nge5 {[%clk 0:01:21]} 17. Qb2 {[%clk 0:02:05]}  Rd7 {[%clk 0:01:17]} 18. Nd2 {[%clk 0:01:56]}  h5 {[%clk 0:01:10]} 19. Rh1 {[%clk 0:01:28]}  Ng6 {[%clk 0:01:08]} 20. f4 {[%clk 0:01:26]}  h4 {[%clk 0:01:08]} 21. Bh2 {[%clk 0:01:26]}  f5 {[%clk 0:01:04]} 22. Bf3 {[%clk 0:01:11]}  fxe4 {[%clk 0:01:02]} 23. Bxe4 {[%clk 0:01:11]}  Bf5 {[%clk 0:01:02]} 24. Bxc6 {[%clk 0:01:10]}  Bxb1 {[%clk 0:00:59]} 25. Bxd7+ {[%clk 0:01:10]}  Kxd7 {[%clk 0:00:59]} 26. Qxb7+ {[%clk 0:01:09]}  Ke8 {[%clk 0:00:55]} 27. Qxb1 {[%clk 0:01:08]}  Qxc3 {[%clk 0:00:54]} 28. Qxg6+ {[%clk 0:01:07]}  Kd8 {[%clk 0:00:55]} 29. Ke2 {[%clk 0:01:00]}  h3 {[%clk 0:00:50]} 30. g4 {[%clk 0:00:59]} 1-0


[Site "https://www.chess.com"]

[Event "Titled Tuesday Blitz August 02 Early 2022"]
[White "Swiercz, Dariusz"]
[Black "Nguyen, Quoc Hy"]
[WhiteFideId "1126881"]
[BlackFideId "12410853"]
[WhiteElo "2627"]
[BlackElo "1938"]
[Result "1/2-1/2"]
[Round "04"]
[TimeControl "180+1"]
[Date "2022.08.02"]
[WhiteClock "0:00:07"]
[BlackClock "0:00:08"]

1. d4 {[%clk 0:03:00]}  d5 {[%clk 0:02:59]} 2. Bf4 {[%clk 0:03:00]}  Nf6 {[%clk 0:02:59]} 3. e3 {[%clk 0:03:00]}  c5 {[%clk 0:02:58]} 4. Nf3 {[%clk 0:02:59]}  Nc6 {[%clk 0:02:58]} 5. c3 {[%clk 0:02:58]}  Bg4 {[%clk 0:02:56]} 6. Nbd2 {[%clk 0:02:54]}  e6 {[%clk 0:02:56]} 7. Qb3 {[%clk 0:02:53]}  Qb6 {[%clk 0:02:55]} 8. Qxb6 {[%clk 0:02:52]}  axb6 {[%clk 0:02:55]} 9. Ne5 {[%clk 0:02:53]}  Nxe5 {[%clk 0:02:46]} 10. Bxe5 {[%clk 0:02:53]}  Nd7 {[%clk 0:02:43]} 11. Bb5 {[%clk 0:02:54]}  Kd8 {[%clk 0:02:43]} 12. Bg3 {[%clk 0:02:52]}  f6 {[%clk 0:02:35]} 13. O-O {[%clk 0:02:51]}  g5 {[%clk 0:01:51]} 14. a4 {[%clk 0:02:47]}  h5 {[%clk 0:01:51]} 15. h3 {[%clk 0:02:45]}  h4 {[%clk 0:01:50]} 16. Bh2 {[%clk 0:02:45]}  Bh5 {[%clk 0:01:49]} 17. Rfe1 {[%clk 0:02:44]}  g4 {[%clk 0:01:35]} 18. hxg4 {[%clk 0:02:39]}  Bxg4 {[%clk 0:01:35]} 19. f3 {[%clk 0:02:25]}  Bh5 {[%clk 0:01:35]} 20. Kf2 {[%clk 0:02:23]}  Bh6 {[%clk 0:01:33]} 21. Bf4 {[%clk 0:02:18]}  e5 {[%clk 0:01:24]} 22. Bxh6 {[%clk 0:02:17]}  Rxh6 {[%clk 0:01:24]} 23. Rh1 {[%clk 0:02:16]}  Bf7 {[%clk 0:01:18]} 24. Rh2 {[%clk 0:02:13]}  Nf8 {[%clk 0:01:15]} 25. Nb3 {[%clk 0:01:45]}  c4 {[%clk 0:01:10]} 26. Nd2 {[%clk 0:01:37]}  Ng6 {[%clk 0:01:10]} 27. b3 {[%clk 0:01:35]}  cxb3 {[%clk 0:01:07]} 28. Nxb3 {[%clk 0:01:36]}  Rc8 {[%clk 0:01:07]} 29. Rc1 {[%clk 0:01:35]}  Ke7 {[%clk 0:01:07]} 30. Nd2 {[%clk 0:01:32]}  Be6 {[%clk 0:01:04]} 31. Bd3 {[%clk 0:01:30]}  f5 {[%clk 0:01:01]} 32. dxe5 {[%clk 0:01:19]}  Nxe5 {[%clk 0:01:01]} 33. Bb5 {[%clk 0:01:19]}  Bd7 {[%clk 0:00:59]} 34. Ke2 {[%clk 0:01:05]}  Bxb5+ {[%clk 0:00:58]} 35. axb5 {[%clk 0:01:06]}  Rc5 {[%clk 0:00:59]} 36. Rch1 {[%clk 0:00:42]}  Rxb5 {[%clk 0:00:55]} 37. Rxh4 {[%clk 0:00:41]}  Rxh4 {[%clk 0:00:56]} 38. Rxh4 {[%clk 0:00:42]}  Rb2 {[%clk 0:00:56]} 39. Rb4 {[%clk 0:00:26]}  Rxb4 {[%clk 0:00:46]} 40. cxb4 {[%clk 0:00:26]}  Nc6 {[%clk 0:00:47]} 41. b5 {[%clk 0:00:18]}  Na7 {[%clk 0:00:47]} 42. Kd3 {[%clk 0:00:17]}  Nxb5 {[%clk 0:00:46]} 43. Nb3 {[%clk 0:00:18]}  Ke6 {[%clk 0:00:46]} 44. Nd4+ {[%clk 0:00:10]}  Nxd4 {[%clk 0:00:45]} 45. Kxd4 {[%clk 0:00:05]}  Kd6 {[%clk 0:00:27]} 46. g4 {[%clk 0:00:06]}  fxg4 {[%clk 0:00:22]} 47. fxg4 {[%clk 0:00:07]}  b5 {[%clk 0:00:23]} 48. g5 {[%clk 0:00:07]}  b4 {[%clk 0:00:19]} 49. g6 {[%clk 0:00:03]}  Ke6 {[%clk 0:00:19]} 50. e4 {[%clk 0:00:03]}  dxe4 {[%clk 0:00:18]} 51. Kxe4 {[%clk 0:00:04]}  Kf6 {[%clk 0:00:08]} 52. Kd4 {[%clk 0:00:04]}  b5 {[%clk 0:00:07]} 53. Kd3 {[%clk 0:00:04]}  Kxg6 {[%clk 0:00:07]} 54. Kc2 {[%clk 0:00:04]}  Kf5 {[%clk 0:00:07]} 55. Kb3 {[%clk 0:00:05]}  Ke5 {[%clk 0:00:07]} 56. Kxb4 {[%clk 0:00:06]}  Kd6 {[%clk 0:00:08]} 57. Kxb5 {[%clk 0:00:07]} 1/2-1/2


[Site "https://www.chess.com"]

[Event "Titled Tuesday Blitz August 02 Early 2022"]
[White "Vakhlamov, Igor L."]
[Black "Fedoseev, Vladimir"]
[WhiteFideId "24126748"]
[BlackFideId "24130737"]
[WhiteElo "2401"]
[BlackElo "2726"]
[Result "0-1"]
[Round "04"]
[TimeControl "180+1"]
[Date "2022.08.02"]
[WhiteClock "0:00:02"]
[BlackClock "0:00:06"]

1. g3 {[%clk 0:02:59]}  f5 {[%clk 0:02:57]} 2. Bg2 {[%clk 0:02:57]}  Nf6 {[%clk 0:02:58]} 3. c4 {[%clk 0:02:57]}  e5 {[%clk 0:02:56]} 4. Nc3 {[%clk 0:02:56]}  Bc5 {[%clk 0:02:55]} 5. e3 {[%clk 0:02:55]}  Nc6 {[%clk 0:02:45]} 6. Nge2 {[%clk 0:02:55]}  e4 {[%clk 0:02:44]} 7. d4 {[%clk 0:02:46]}  Be7 {[%clk 0:02:38]} 8. O-O {[%clk 0:02:43]}  O-O {[%clk 0:02:37]} 9. Nf4 {[%clk 0:02:38]}  Kh8 {[%clk 0:02:27]} 10. a3 {[%clk 0:02:35]}  Na5 {[%clk 0:02:13]} 11. b3 {[%clk 0:02:23]}  b6 {[%clk 0:02:01]} 12. Bb2 {[%clk 0:02:21]}  Ba6 {[%clk 0:01:51]} 13. Rc1 {[%clk 0:02:17]}  Bd6 {[%clk 0:01:47]} 14. Nfd5 {[%clk 0:02:07]}  Nxd5 {[%clk 0:01:46]} 15. Nxd5 {[%clk 0:02:08]}  c6 {[%clk 0:01:45]} 16. Nb4 {[%clk 0:02:02]}  Bb7 {[%clk 0:01:42]} 17. Na2 {[%clk 0:01:30]}  b5 {[%clk 0:01:40]} 18. c5 {[%clk 0:01:12]}  Be7 {[%clk 0:01:40]} 19. Bc3 {[%clk 0:01:09]}  Bf6 {[%clk 0:01:30]} 20. Rb1 {[%clk 0:01:02]}  Bc8 {[%clk 0:01:28]} 21. d5 {[%clk 0:00:53]}  Nb7 {[%clk 0:01:13]} 22. b4 {[%clk 0:00:51]}  a5 {[%clk 0:01:12]} 23. Bxf6 {[%clk 0:00:46]}  Qxf6 {[%clk 0:01:11]} 24. Qb3 {[%clk 0:00:40]}  Nd8 {[%clk 0:01:05]} 25. d6 {[%clk 0:00:37]}  Nf7 {[%clk 0:01:00]} 26. Rfd1 {[%clk 0:00:36]}  Ne5 {[%clk 0:00:58]} 27. Qb2 {[%clk 0:00:32]}  Bb7 {[%clk 0:00:49]} 28. Nc1 {[%clk 0:00:29]}  axb4 {[%clk 0:00:45]} 29. axb4 {[%clk 0:00:30]}  Ra4 {[%clk 0:00:45]} 30. Ne2 {[%clk 0:00:20]}  Rfa8 {[%clk 0:00:45]} 31. Nd4 {[%clk 0:00:17]}  Ra2 {[%clk 0:00:34]} 32. Qc3 {[%clk 0:00:17]}  Nc4 {[%clk 0:00:23]} 33. Bf1 {[%clk 0:00:09]}  Ne5 {[%clk 0:00:19]} 34. Rdc1 {[%clk 0:00:04]}  R8a3 {[%clk 0:00:12]} 35. Qe1 {[%clk 0:00:04]}  Qf7 {[%clk 0:00:08]} 36. Be2 {[%clk 0:00:04]}  Qd5 {[%clk 0:00:08]} 37. Ra1 {[%clk 0:00:04]}  h6 {[%clk 0:00:07]} 38. Rxa2 {[%clk 0:00:04]}  Qxa2 {[%clk 0:00:06]} 39. h4 {[%clk 0:00:04]}  Qb2 {[%clk 0:00:06]} 40. Rb1 {[%clk 0:00:03]}  Qa2 {[%clk 0:00:06]} 41. Qd1 {[%clk 0:00:02]}  Nd3 {[%clk 0:00:06]} 42. Bxd3 {[%clk 0:00:02]}  exd3 {[%clk 0:00:06]} 0-1


[Site "https://www.chess.com"]

[Event "Titled Tuesday Blitz August 02 Early 2022"]
[White "Zhigalko, Sergei"]
[Black "Goldin, Alexander"]
[WhiteFideId "13502956"]
[BlackFideId "2019540"]
[WhiteElo "2662"]
[BlackElo "2659"]
[Result "1-0"]
[Round "04"]
[TimeControl "180+1"]
[Date "2022.08.02"]
[WhiteClock "0:00:06"]
[BlackClock "0:00:04"]

1. e4 {[%clk 0:03:00]}  e5 {[%clk 0:02:59]} 2. Nf3 {[%clk 0:03:00]}  Nc6 {[%clk 0:02:59]} 3. Bc4 {[%clk 0:03:01]}  Be7 {[%clk 0:02:59]} 4. d4 {[%clk 0:02:59]}  d6 {[%clk 0:02:59]} 5. O-O {[%clk 0:02:48]}  Nf6 {[%clk 0:02:58]} 6. Re1 {[%clk 0:02:38]}  O-O {[%clk 0:02:57]} 7. dxe5 {[%clk 0:02:26]}  Nxe5 {[%clk 0:02:54]} 8. Nxe5 {[%clk 0:02:22]}  dxe5 {[%clk 0:02:54]} 9. Qf3 {[%clk 0:02:21]}  c6 {[%clk 0:02:53]} 10. a4 {[%clk 0:02:20]}  a5 {[%clk 0:02:53]} 11. Nd2 {[%clk 0:02:19]}  Ne8 {[%clk 0:02:28]} 12. Ba2 {[%clk 0:02:10]}  Nd6 {[%clk 0:02:17]} 13. Nf1 {[%clk 0:02:05]}  Bg5 {[%clk 0:02:13]} 14. h3 {[%clk 0:01:50]}  Qe7 {[%clk 0:02:06]} 15. Bxg5 {[%clk 0:01:48]}  Qxg5 {[%clk 0:02:05]} 16. Rad1 {[%clk 0:01:49]}  Qe7 {[%clk 0:02:02]} 17. Qa3 {[%clk 0:01:37]}  Rd8 {[%clk 0:01:59]} 18. Rd3 {[%clk 0:01:30]}  b6 {[%clk 0:01:15]} 19. Red1 {[%clk 0:01:17]}  c5 {[%clk 0:01:14]} 20. Ne3 {[%clk 0:00:57]}  Ba6 {[%clk 0:01:07]} 21. Nd5 {[%clk 0:00:56]}  Qf8 {[%clk 0:00:49]} 22. Rf3 {[%clk 0:00:24]}  Nc4 {[%clk 0:00:38]} 23. Qc3 {[%clk 0:00:16]}  Nd6 {[%clk 0:00:24]} 24. Qxe5 {[%clk 0:00:16]}  Bc4 {[%clk 0:00:22]} 25. Ne7+ {[%clk 0:00:04]}  Kh8 {[%clk 0:00:21]} 26. Rxd6 {[%clk 0:00:05]}  Rxd6 {[%clk 0:00:18]} 27. Qxd6 {[%clk 0:00:06]}  Bxa2 {[%clk 0:00:18]} 28. Nf5 {[%clk 0:00:02]}  Bb1 {[%clk 0:00:13]} 29. Qxf8+ {[%clk 0:00:01]}  Rxf8 {[%clk 0:00:14]} 30. Rc3 {[%clk 0:00:01]}  Rd8 {[%clk 0:00:15]} 31. Ne3 {[%clk 0:00:01]}  Rd4 {[%clk 0:00:12]} 32. Rb3 {[%clk 0:00:01]}  Rb4 {[%clk 0:00:11]} 33. Rxb4 {[%clk 0:00:02]}  cxb4 {[%clk 0:00:10]} 34. b3 {[%clk 0:00:02]}  Kg8 {[%clk 0:00:06]} 35. Kf1 {[%clk 0:00:03]}  Kf8 {[%clk 0:00:06]} 36. Ke2 {[%clk 0:00:04]}  b5 {[%clk 0:00:04]} 37. axb5 {[%clk 0:00:03]}  a4 {[%clk 0:00:05]} 38. bxa4 {[%clk 0:00:04]}  Ba2 {[%clk 0:00:05]} 39. Kd3 {[%clk 0:00:03]}  Ke7 {[%clk 0:00:06]} 40. Nd5+ {[%clk 0:00:04]}  Kd6 {[%clk 0:00:02]} 41. Nxb4 {[%clk 0:00:04]}  Be6 {[%clk 0:00:01]} 42. Kd4 {[%clk 0:00:04]}  Kc7 {[%clk 0:00:01]} 43. Nd3 {[%clk 0:00:04]}  Kb6 {[%clk 0:00:02]} 44. c4 {[%clk 0:00:05]}  Ka5 {[%clk 0:00:03]} 45. Nc5 {[%clk 0:00:06]}  Bc8 {[%clk 0:00:03]} 46. e5 {[%clk 0:00:06]}  Kb4 {[%clk 0:00:04]} 47. b6 {[%clk 0:00:06]} 1-0


[Site "https://www.chess.com"]

[Event "Titled Tuesday Blitz August 02 Early 2022"]
[White "Aditya Mittal"]
[Black "Janaszak, Dawid"]
[WhiteFideId "35042025"]
[BlackFideId "1119206"]
[WhiteElo "2303"]
[BlackElo "2199"]
[Result "1-0"]
[Round "05"]
[TimeControl "180+1"]
[Date "2022.08.02"]
[WhiteClock "0:01:45"]
[BlackClock "0:00:36"]

1. d4 {[%clk 0:03:00]}  e6 {[%clk 0:02:57]} 2. c4 {[%clk 0:03:01]}  Bb4+ {[%clk 0:02:53]} 3. Bd2 {[%clk 0:02:57]}  a5 {[%clk 0:02:53]} 4. Nf3 {[%clk 0:02:54]}  Nf6 {[%clk 0:02:51]} 5. a3 {[%clk 0:02:54]}  Bxd2+ {[%clk 0:02:50]} 6. Qxd2 {[%clk 0:02:55]}  b6 {[%clk 0:02:47]} 7. Nc3 {[%clk 0:02:56]}  Bb7 {[%clk 0:02:47]} 8. Qf4 {[%clk 0:02:57]}  O-O {[%clk 0:02:41]} 9. e4 {[%clk 0:02:56]}  d6 {[%clk 0:02:22]} 10. O-O-O {[%clk 0:02:56]}  b5 {[%clk 0:02:04]} 11. cxb5 {[%clk 0:02:54]}  Nbd7 {[%clk 0:02:00]} 12. h4 {[%clk 0:02:55]}  e5 {[%clk 0:01:55]} 13. dxe5 {[%clk 0:02:52]}  dxe5 {[%clk 0:01:43]} 14. Nxe5 {[%clk 0:02:49]}  Qc8 {[%clk 0:01:05]} 15. Nxd7 {[%clk 0:02:38]}  Nxd7 {[%clk 0:01:06]} 16. Qf5 {[%clk 0:02:21]}  Rd8 {[%clk 0:00:54]} 17. Bc4 {[%clk 0:02:20]}  Nf6 {[%clk 0:00:49]} 18. Rxd8+ {[%clk 0:02:12]}  Qxd8 {[%clk 0:00:49]} 19. e5 {[%clk 0:02:11]}  Qd7 {[%clk 0:00:36]} 20. Qxd7 {[%clk 0:01:46]}  Nxd7 {[%clk 0:00:37]} 21. e6 {[%clk 0:01:47]}  Ne5 {[%clk 0:00:36]} 22. exf7+ {[%clk 0:01:47]}  Kf8 {[%clk 0:00:36]} 23. Bd5 {[%clk 0:01:44]}  Bxd5 {[%clk 0:00:36]} 24. Nxd5 {[%clk 0:01:45]}  Re8 {[%clk 0:00:36]} 25. fxe8=Q+ {[%clk 0:01:45]} 1-0


[Site "https://www.chess.com"]